Cheque Ref,Cost Centre Description,Cost Centre Code,Nominal Code Description,Nominal Code,Transaction Detail,Date Paid,Own Ref No,Net,VAT,Total,Amount,Payee Name
DD,Policy & Process,100,Rent,4240,Office Rent Apl 19,01/04/2019,1,425,85,510,425,CWAC
207317,Cemetery,130,Rates,4250,Cemetery Rates Half Year,02/04/2019,6,699.35,0,699.35,699.35,CWAC
BACS,Events,140,Festival of Walks,4710,Leaflets & Posters,02/04/2019,10,693,34,727,693,Hawk Publications Ltd
BACS,Policy & Process,100,Subscriptions & Memberships,4140,Affiliation Fee Annual,11/04/2019,14,1470.04,0,1470.04,1470.04,CHALC
BACS,Policy & Process,100,Subscriptions & Memberships,4140,Duplicate Payment,11/04/2019,15,1470.04,0,1470.04,1470.04,CHALC
BACS,Policy & Process,100,Staff Salary,4000,Salary Month 1,11/04/2019,16,578,0,578,578,Salary
BACS,Policy & Process,100,Staff Salary,4000,Salary Month 1,11/04/2019,17,749,0,749,749,Salary
BACS,Policy & Process,100,Staff Salary,4000,Salary Month 1,11/04/2019,18,683.84,0,683.84,683.84,Salary
BACS,Policy & Process,100,Staff Salary,4000,Salary Month 1,11/04/2019,19,2764.36,0,2764.36,2764.36,Salary
BACS,Policy & Process,100,Staff Salary,4000,Salary Month 1,11/04/2019,20,583.61,0,583.61,583.61,Salary
BACS,Policy & Process,100,PAYE and NI,4030,PAYE/NI Month 1,11/04/2019,21,2368.58,0,2368.58,2368.58,HMRC
BACS,Policy & Process,100,Pension,4040,Pensions Month 1,11/04/2019,22,1330.51,0,1330.51,1330.51,Cheshire Pensions
BACS,Policy & Process,100,Rent,4240,Support Sessions Hob Hey Wood,11/04/2019,23,1050,210,1260,1050,Mersey Forest
DD,Policy & Process,100,Rent,4240,Office rent May,01/05/2019,40,425,85,510,425,CWAC
BACS,Community,110,Xmas Lights,4420,Light installation x 3 trees,09/05/2019,50,4005,801,4806,4005,LITE
BACS,Policy & Process,100,Insurance,4150,Annual insurance,09/05/2019,51,2321.74,0,2321.74,2321.74,ZURICH MUNICIPAL
207321,Community,110,Rent,4240,Town Field Lane rent,13/05/2019,52,1100,0,1100,1100,FEEOFEES OF FRODSHAM
BACS,Policy & Process,100,Staff Salary,4000,Salary month 2,15/05/2019,53,683.04,0,683.04,683.04,Salary
BACS,Policy & Process,100,Staff Salary,4000,Salary month 2,15/05/2019,54,722.85,0,722.85,722.85,Salary
BACS,Policy & Process,100,Staff Salary,4000,Salary month 2,15/05/2019,56,1959.61,0,1959.61,1959.61,Salary
BACS,Policy & Process,100,Staff Salary,4000,Salary month 2,15/05/2019,57,583.41,0,583.41,583.41,Salary
BACS,Policy & Process,100,PAYE and NI,4030,PAYE & NIC month 2,15/05/2019,58,1819.29,0,1819.29,1819.29,HMRC
BACS,Policy & Process,100,Pension,4040,Pensions month 2,15/05/2019,59,1340.86,0,1340.86,1340.86,Cheshire Pensions
BACS,Community,110,Rent,4240,Drive Safely For Longer,22/05/2019,67,500,0,500,500,Frodsham Golf Club
DD,Policy & Process,100,Rent,4240,Rent to 30/06,01/06/2019,76,425,85,510,425,CWAC
BACS,,,Accruals,510,Interim & Year end audit,11/06/2019,88,488,97.6,585.6,488,JDH Business Services
BACS,Policy & Process,100,Staff Salary,4000,Salary month 3,11/06/2019,90,578.08,0,578.08,578.08,Salary
BACS,Policy & Process,100,Staff Salary,4000,Salary month3,11/06/2019,91,761.02,0,761.02,761.02,Salary
BACS,Policy & Process,100,Staff Salary,4000,Salary month 3,11/06/2019,92,631.16,0,631.16,631.16,Salary
BACS,Policy & Process,100,Staff Salary,4000,Salary month,11/06/2019,93,2621.61,0,2621.61,2621.61,Salary
BACS,Policy & Process,100,Staff Salary,4000,Salary month3,11/06/2019,94,583.41,0,583.41,583.41,Salary
BACS,Policy & Process,100,PAYE and NI,4030,PAYE & NI month 3,11/06/2019,95,1153.01,0,1153.01,1153.01,HMRC
BACS,Policy & Process,100,Pension,4040,Pensions month 3,11/06/2019,96,1335.69,0,1335.69,1335.69,Cheshire Pensions
BACS,Community,110,Maintenance,4320,Hanging baskets part quote 271,12/06/2019,97,2020,404,2424,2020,Northwich Town Council
